bitfinex/quotes_BTCUSD_20241117
["timestamp","ask_amount","ask_price","bid_price","bid_amount"]
[1731875319000,0.024,89568.0,89567.0,0.111704]
[1731875319225,0.16735001,89572.0,89567.0,0.111704]
[1731875319226,0.16735001,89572.0,89568.0,0.111647]
[1731875319437,0.16735001,89572.0,89569.0,0.111645]
[1731875319663,0.005,89568.0,89567.0,5.6e-05]
[1731875319868,0.11129341,89568.0,89567.0,0.111704]
[1731875320099,0.005,89578.0,89573.0,0.11164]
[1731875320329,0.16735001,89574.0,89573.0,0.11164]
[1731875320554,0.16735001,89574.0,89567.0,5.6e-05]
[1731875320555,0.116647,89568.0,89567.0,5.6e-05]
[1731875320766,0.22570955,89568.0,89567.0,5.6e-05]
[1731875321037,0.11129341,89568.0,89567.0,5.6e-05]
[1731875321259,0.005,89580.0,89576.0,0.111636]
[1731875321492,0.11129341,89579.0,89578.0,0.111633]
[1731875321719,0.11129341,89579.0,89569.0,0.223291]
[1731875321720,0.10906255,89579.0,89575.0,0.111638]
[1731875321939,0.00223086,89578.0,89571.0,0.223286]
[1731875322158,0.11129341,89578.0,89577.0,0.111635]
[1731875322413,0.10906255,89578.0,89575.0,0.111638]
[1731875322648,0.10906255,89578.0,89575.0,0.111637]
[1731875323342,0.10906255,89578.0,89569.0,0.223291]
[1731875323572,0.10906255,89578.0,89574.0,0.111638]
[1731875323573,0.00223086,89577.0,89574.0,0.111638]
[1731875324007,0.02051126,89576.0,89567.0,5.6e-05]
[1731875324223,0.02274212,89575.0,89567.0,5.6e-05]
[1731875324436,0.02051126,89574.0,89567.0,5.6e-05]
[1731875324666,0.02051126,89574.0,89573.0,0.11164]
[1731875325105,0.06732629,89574.0,89573.0,0.11164]
[1731875325557,0.08375765,89574.0,89573.0,0.11164]
[1731875325980,0.1938202,89574.0,89567.0,0.000911]
[1731875326248,0.28399201,89572.0,89567.0,0.000911]
[1731875326460,0.116647,89568.0,89567.0,0.000911]
[1731875326698,0.111649,89566.0,89560.0,7e-05]
[1731875326931,0.03507143,89565.0,89560.0,7e-05]
[1731875327141,0.21414956,89564.0,89559.0,0.111657]
[1731875327378,0.03448572,89563.0,89555.0,0.223326]
[1731875327627,0.18130899,89562.0,89554.0,0.0005]
[1731875327836,0.01395898,89561.0,89555.0,0.223326]
[1731875328047,0.04679955,89560.0,89559.0,0.111657]
[1731875328275,0.06732629,89560.0,89557.0,0.11166]
[1731875328494,0.16735001,89562.0,89554.0,0.0005]
[1731875328722,0.06742064,89561.0,89557.0,0.11166]
[1731875328954,0.111663,89555.0,89554.0,0.0005]
[1731875329193,0.19516317,89555.0,89554.0,0.0005]
[1731875329421,0.19293231,89555.0,89554.0,0.0005]
[1731875329642,0.31182617,89555.0,89554.0,0.0005]
[1731875329841,0.30959531,89555.0,89554.0,0.0005]
[1731875330305,0.31459531,89555.0,89554.0,0.0005]
[1731875330528,0.31459531,89555.0,89542.0,0.08477037]
[1731875330529,0.116678,89543.0,89542.0,0.03650594]
[1731875330735,0.30961031,89543.0,89542.0,0.03650594]
[1731875331159,0.30461031,89543.0,89542.0,0.03650594]
[1731875331402,0.005,89538.0,89517.0,0.44907399]
[1731875331632,0.25448714,89543.0,89526.0,0.2192518]
[1731875331633,0.17648319,89537.0,89526.0,0.2192518]
[1731875331846,0.08604396,89536.0,89531.0,0.111692]
[1731875332055,0.08604396,89536.0,89527.0,0.223395]
[1731875332056,0.06327506,89535.0,89527.0,0.223395]
[1731875332258,0.0227689,89536.0,89526.0,0.111699]
[1731875332259,0.16735001,89533.0,89526.0,0.111699]
[1731875332470,0.0490568,89532.0,89521.0,0.223408]
[1731875332712,0.04682594,89531.0,89530.0,0.111694]
[1731875333169,0.17642653,89531.0,89523.0,0.111703]
[1731875333374,0.17642653,89530.0,89519.0,0.223416]
[1731875333575,0.00223086,89532.0,89530.0,0.111693]
[1731875333786,0.02052939,89529.0,89520.0,0.223413]
[1731875333993,0.03284702,89531.0,89529.0,0.111695]
[1731875334404,0.02052907,89528.0,89527.0,0.111698]
[1731875334620,0.04681192,89528.0,89527.0,0.111698]
[1731875334840,0.06734099,89528.0,89527.0,0.111698]
[1731875335065,0.16735001,89533.0,89532.0,0.111691]
[1731875335298,0.20019663,89533.0,89532.0,0.111691]
[1731875335524,0.23469063,89533.0,89532.0,0.111691]
[1731875335956,0.06734062,89533.0,89532.0,0.111691]
[1731875336420,0.03449373,89533.0,89532.0,0.111691]
[1731875336707,0.02052931,89533.0,89532.0,0.111691]
[1731875337349,0.0533687,89533.0,89532.0,0.111691]
[1731875337568,0.02152931,89533.0,89532.0,0.22575355]
[1731875337774,0.001,89533.0,89532.0,0.22575355]
[1731875337981,0.002,89533.0,89532.0,0.32575355]
[1731875338414,0.16735001,89546.0,89545.0,0.111675]
[1731875338647,0.16735001,89546.0,89545.0,0.2665927]
[1731875340527,0.01395992,89572.0,89546.0,0.005]
[1731875340775,0.01395992,89572.0,89563.0,0.111653]
[1731875341000,0.01619078,89572.0,89563.0,0.111653]
[1731875341229,0.0328562,89571.0,89563.0,0.111653]
[1731875341463,0.01619078,89572.0,89563.0,0.111653]
[1731875341742,0.18788513,89564.0,89563.0,0.111653]
[1731875341973,0.02053512,89564.0,89563.0,0.111653]
[1731875342208,0.03286979,89571.0,89560.0,0.223311]
[1731875342437,0.05342822,89570.0,89569.0,0.111645]
[1731875342666,0.02054568,89570.0,89569.0,0.111645]
[1731875342905,0.01395992,89572.0,89566.0,0.223299]
[1731875343137,0.01395992,89572.0,89571.0,0.111643]
[1731875343379,0.03451375,89572.0,89571.0,0.111643]
[1731875344082,0.005,89564.0,89546.0,0.105]
[1731875344338,0.11129341,89563.0,89554.0,0.111664]
[1731875344560,0.05344982,89562.0,89550.0,0.223338]
[1731875344780,0.33209324,89561.0,89558.0,0.111659]
[1731875344999,0.33209324,89561.0,89546.0,0.105]
[1731875345000,0.05344982,89560.0,89546.0,0.105]
[1731875345205,0.05344982,89560.0,89545.0,0.1034211]
[1731875345206,0.16474323,89559.0,89545.0,0.1034211]
[1731875345414,0.005,89554.0,89550.0,0.111668]
[1731875345637,0.005,89544.0,89531.0,0.1034211]
[1731875345844,0.16474323,89543.0,89533.0,0.223381]
[1731875346023,0.005,89540.0,89531.0,0.1034211]
[1731875346256,0.16474323,89539.0,89536.0,0.111685]
[1731875346465,0.05344982,89538.0,89533.0,0.223381]
[1731875346643,0.11129341,89537.0,89533.0,0.223381]
[1731875346887,0.18790384,89536.0,89530.0,0.2242426]
[1731875347097,0.02055383,89536.0,89535.0,0.111688]
[1731875347314,0.10906255,89537.0,89536.0,0.111686]
[1731875347761,0.1296355,89537.0,89536.0,0.111686]
[1731875348003,0.16254886,89537.0,89536.0,0.111686]
[1731875348237,0.10906255,89537.0,89536.0,0.111686]
[1731875348655,0.10906255,89537.0,89532.0,0.223383]
[1731875348863,0.10906255,89537.0,89536.0,0.003]
[1731875349077,0.11406255,89537.0,89536.0,0.003]
[1731875349284,0.2463205,89537.0,89536.0,0.003]
[1731875349697,0.24855136,89537.0,89536.0,0.003]
[1731875350120,0.13686636,89537.0,89530.0,0.0008556]
[1731875350330,0.16517027,89536.0,89530.0,0.0008556]
[1731875350544,0.11129341,89535.0,89530.0,0.0008556]
[1731875350764,0.02056111,89534.0,89530.0,0.0008556]
[1731875350957,0.14419119,89533.0,89530.0,0.0008556]
[1731875351157,0.11129341,89533.0,89530.0,0.0008556]
[1731875351585,0.16735001,89540.0,89537.0,0.111685]
[1731875351586,0.02279197,89538.0,89537.0,0.111685]
[1731875351865,0.10906255,89538.0,89537.0,0.111685]
[1731875352063,0.11129341,89538.0,89537.0,0.111685]
[1731875353352,0.005,89544.0,89543.0,0.111678]
[1731875353582,0.11406255,89544.0,89543.0,0.111678]
[1731875353801,0.11406255,89544.0,89534.0,0.223378]
[1731875354033,0.11129341,89543.0,89530.0,0.0008556]
[1731875354240,0.006,89538.0,89537.0,0.111685]
[1731875355160,0.11129341,89543.0,89542.0,0.111679]
[1731875356057,0.10906255,89543.0,89542.0,0.111679]
[1731875356485,0.025,89544.0,89543.0,0.111678]
[1731875356711,0.16735001,89551.0,89550.0,0.111669]
[1731875357152,0.005,89531.0,89528.0,0.223393]
[1731875357377,0.00223086,89542.0,89540.0,0.111681]
[1731875357585,0.005,89547.0,89545.0,0.111675]
[1731875357795,0.11129341,89546.0,89545.0,0.111675]
[1731875358034,0.11129341,89548.0,89547.0,0.111673]
[1731875358268,0.005,89555.0,89554.0,0.111664]
[1731875358495,0.11129341,89555.0,89554.0,0.111664]
[1731875358758,0.11129341,89555.0,89530.0,0.0008556]
[1731875358759,0.005,89554.0,89530.0,0.0008556]
[1731875358992,0.00223086,89553.0,89552.0,0.111666]
[1731875359223,0.00223086,89553.0,89549.0,0.223341]
[1731875359466,0.005,89536.0,89535.0,0.111688]
[1731875359698,0.005,89543.0,89530.0,0.2242426]
[1731875359927,0.00223086,89547.0,89541.0,0.11168]
[1731875359928,0.10906255,89542.0,89541.0,0.11168]
[1731875360159,0.16958087,89547.0,89535.0,0.223376]
[1731875360391,0.005,89555.0,89532.0,0.15519003]
[1731875360392,0.02281391,89555.0,89554.0,0.111664]
[1731875360617,0.005,89559.0,89556.0,0.111661]
[1731875360618,0.02058305,89557.0,89556.0,0.111661]
[1731875360840,0.02058305,89557.0,89532.0,0.15519003]
[1731875360841,0.00223086,89558.0,89557.0,0.11166]
[1731875361044,0.00223086,89558.0,89533.0,0.223381]
[1731875361045,0.02781391,89567.0,89564.0,0.111652]
[1731875361262,0.02781391,89567.0,89545.0,0.15519003]
[1731875361263,0.02058305,89566.0,89565.0,0.11165]
[1731875361484,0.02058305,89566.0,89546.0,0.00223312]
[1731875361485,0.16735001,89567.0,89566.0,0.111649]
[1731875361691,0.0783,89581.0,89573.0,0.11164]
[1731875361692,0.005,89575.0,89573.0,0.11164]
[1731875361894,0.11077375,89574.0,89573.0,0.11164]
[1731875362373,0.0017112,89574.0,89573.0,0.11164]
[1731875362841,0.0783,89594.0,89573.0,0.11164]
[1731875362842,0.09836737,89607.0,89574.0,0.0495]
[1731875363057,0.3319899,89629.0,89574.0,0.0495]
[1731875363058,0.16735001,89602.0,89601.0,0.111605]
[1731875363300,0.16735001,89602.0,89601.0,0.116605]
[1731875363547,0.16735001,89619.0,89618.0,0.111584]
[1731875364210,0.16735001,89646.0,89619.0,0.111583]
[1731875364439,0.16735001,89646.0,89619.0,0.22564555]
[1731875364659,0.16735001,89636.0,89632.0,0.111567]
[1731875364866,0.16735001,89636.0,89632.0,0.26675703]
[1731875365288,0.0017118,89654.0,89638.0,0.116559]
[1731875365496,0.0017118,89654.0,89638.0,0.30442155]
[1731875365708,0.0017118,89654.0,89638.0,0.30942155]
[1731875365929,0.0017118,89654.0,89653.0,0.005]
[1731875366138,0.0017118,89654.0,89653.0,0.48579358]
[1731875367009,0.0017118,89654.0,89653.0,0.216541]
[1731875367303,0.0017118,89654.0,89653.0,0.111541]
[1731875367540,0.0017118,89654.0,89653.0,0.114541]
[1731875367754,0.0017118,89654.0,89653.0,0.111541]
[1731875368192,0.0017118,89654.0,89653.0,0.114541]
[1731875368408,0.0017118,89654.0,89643.0,0.223106]
[1731875368409,0.22231335,89654.0,89643.0,0.223106]
[1731875368625,0.11129341,89653.0,89637.0,0.16735001]
[1731875368836,0.11129341,89653.0,89639.0,0.223117]
[1731875369071,0.16735001,89648.0,89631.0,0.223137]
[1731875369301,0.16735001,89648.0,89602.0,0.03252987]
[1731875369302,0.11129341,89647.0,89641.0,0.16735001]
[1731875369533,0.00223086,89646.0,89639.0,0.111557]
[1731875369747,0.00223086,89646.0,89635.0,0.223127]
[1731875369748,0.0017118,89654.0,89641.0,0.223112]
[1731875369975,0.0017118,89654.0,89643.0,0.15519003]
[1731875370229,0.0017118,89654.0,89653.0,0.111541]
[1731875370874,0.0257118,89654.0,89653.0,0.111541]
[1731875371536,0.0257118,89654.0,89653.0,0.114541]
[1731875372600,0.0017118,89654.0,89653.0,0.111541]
[1731875373053,0.0017118,89654.0,89653.0,0.114541]
[1731875373259,0.0017118,89654.0,89653.0,0.111541]
[1731875373467,0.0017118,89654.0,89653.0,0.114541]
[1731875373915,0.0017118,89654.0,89653.0,0.111541]
[1731875374182,0.0017118,89654.0,89653.0,0.114541]
[1731875374416,0.0017118,89654.0,89653.0,0.111541]
[1731875375870,0.0017118,89654.0,89653.0,0.114541]
[1731875376082,0.0017118,89654.0,89653.0,0.111541]
[1731875376297,0.0017118,89654.0,89653.0,0.114541]
[1731875377198,0.0017118,89654.0,89653.0,0.111541]
[1731875377458,0.0017118,89654.0,89653.0,0.114541]
[1731875377708,0.0017118,89654.0,89653.0,0.111541]
[1731875378925,0.0017118,89654.0,89653.0,0.114541]
[1731875379170,0.0017118,89654.0,89653.0,0.111541]
[1731875379351,0.12207301,89664.0,89651.0,0.223085]
[1731875379595,0.12207301,89664.0,89663.0,0.111528]
[1731875379731,0.16735001,89676.0,89657.0,0.00223051]
[1731875379934,0.16735001,89676.0,89675.0,0.111513]
[1731875380364,0.00223086,89684.0,89681.0,0.111505]
[1731875380546,0.00223086,89684.0,89653.0,0.15519003]
[1731875380547,0.10906255,89683.0,89677.0,0.111511]
[1731875380758,0.00223086,89682.0,89671.0,0.223036]
[1731875380979,0.10906255,89681.0,89680.0,0.111507]
[1731875383280,0.13006255,89681.0,89680.0,0.112507]
[1731875383498,0.14022077,89681.0,89680.0,0.112507]
[1731875383717,0.13006255,89681.0,89680.0,0.112507]
[1731875383932,0.10906255,89681.0,89680.0,0.111507]
[1731875384164,0.01015822,89690.0,89689.0,0.111496]
[1731875384389,0.11922077,89690.0,89689.0,0.111496]
[1731875384610,0.10906255,89690.0,89689.0,0.111496]
[1731875384836,0.11923692,89690.0,89689.0,0.111496]
[1731875385926,0.11923692,89690.0,89689.0,0.112496]
[1731875385927,0.02817437,89690.0,89689.0,0.112496]
[1731875386638,0.01017437,89690.0,89689.0,0.111496]
[1731875387081,0.00223086,89701.0,89700.0,0.111482]
[1731875387302,0.00223086,89701.0,89682.0,0.005]
[1731875387303,0.01019954,89701.0,89688.0,0.15519003]
[1731875387528,0.01019954,89700.0,89699.0,0.111483]
[1731875388205,0.00950762,89700.0,89699.0,0.27167303]
[1731875388435,0.0017118,89709.0,89708.0,0.111472]
[1731875388887,0.11077435,89709.0,89703.0,0.111477]
[1731875389106,0.10906255,89708.0,89700.0,0.001]
[1731875389322,0.0017118,89709.0,89708.0,0.111472]
[1731875389558,0.0047118,89709.0,89708.0,0.111472]
[1731875389766,0.01168051,89709.0,89708.0,0.111472]
[1731875389989,0.03212374,89709.0,89708.0,0.111472]
[1731875390244,0.06483317,89709.0,89708.0,0.111472]
[1731875390471,0.06183317,89709.0,89708.0,0.111472]
[1731875390690,0.06783317,89709.0,89708.0,0.112472]
[1731875390921,0.06783317,89709.0,89708.0,0.001]
[1731875390922,0.17689572,89709.0,89708.0,0.001]
[1731875391144,0.06783317,89709.0,89708.0,0.11018569]
[1731875391377,0.08177074,89709.0,89708.0,0.11018569]
[1731875391603,0.0077118,89709.0,89708.0,0.11018569]
[1731875391828,0.107792,89709.0,89708.0,0.11018569]
[1731875392046,0.07497546,89709.0,89708.0,0.11018569]
[1731875392263,0.09837868,89709.0,89708.0,0.11018569]
[1731875392478,0.0844419,89709.0,89708.0,0.11018569]
[1731875392756,0.1008756,89709.0,89708.0,0.11018569]
[1731875392972,0.08444071,89709.0,89708.0,0.11018569]
[1731875394085,0.07747235,89709.0,89708.0,0.11018569]
[1731875394781,0.04465581,89709.0,89708.0,0.11018569]
[1731875395218,0.02414547,89709.0,89708.0,0.11018569]
[1731875395444,0.07158793,89709.0,89708.0,0.11018569]
[1731875395910,0.07158793,89709.0,89708.0,0.002]
[1731875395911,0.18065048,89709.0,89708.0,0.002]
[1731875396124,0.18288134,89709.0,89677.0,0.15519003]
[1731875396344,0.111483,89699.0,89698.0,0.16735001]
[1731875396560,0.17893868,89699.0,89689.0,0.16735001]
[1731875396777,0.18116954,89698.0,89689.0,0.16735001]
[1731875396990,0.18116954,89698.0,89694.0,0.11149]
[1731875396991,0.06987613,89697.0,89694.0,0.11149]
[1731875397209,0.17893868,89696.0,89694.0,0.11149]
[1731875397424,0.07893868,89696.0,89693.0,0.11149]
[1731875398050,0.07893868,89696.0,89690.0,0.22299]
[1731875398302,0.07893868,89696.0,89691.0,0.111493]
[1731875398528,0.07893868,89696.0,89694.0,0.111489]
[1731875398990,0.00223086,89698.0,89695.0,0.16735001]
[1731875399238,0.0017118,89709.0,89677.0,0.16019003]
[1731875399239,0.00223086,89708.0,89705.0,0.222952]
[1731875399468,0.0017118,89709.0,89708.0,0.111472]
[1731875400663,0.01199044,89709.0,89708.0,0.11370135]
[1731875400910,0.01199044,89709.0,89708.0,0.111472]
[1731875401151,0.0017118,89709.0,89708.0,0.111472]
[1731875401615,0.01199185,89709.0,89708.0,0.111472]
[1731875402316,0.02799185,89709.0,89708.0,0.112472]
[1731875402547,0.0017118,89709.0,89708.0,0.111472]
[1731875403018,0.0017118,89709.0,89708.0,0.113472]
[1731875403245,0.0017118,89709.0,89708.0,0.111472]
[1731875403470,0.01199253,89709.0,89708.0,0.111472]
[1731875403696,0.23252608,89709.0,89708.0,0.002]
[1731875403925,0.12328594,89709.0,89685.0,0.15519003]
[1731875404157,0.111481,89701.0,89698.0,0.16735001]
[1731875404387,0.00223086,89705.0,89699.0,0.16735001]
[1731875404606,0.0017118,89709.0,89705.0,0.222951]
[1731875404845,0.0017118,89709.0,89708.0,0.111472]
[1731875405306,0.01199744,89709.0,89708.0,0.112472]
[1731875405585,0.01199744,89709.0,89708.0,0.111472]
[1731875405769,0.02599744,89709.0,89708.0,0.111472]
[1731875406202,0.01199744,89709.0,89708.0,0.111472]
[1731875406423,0.01199744,89709.0,89708.0,0.112472]
[1731875406657,0.01199744,89709.0,89708.0,0.111472]
[1731875407109,0.01199744,89709.0,89708.0,0.001]
[1731875407110,0.12105999,89709.0,89708.0,0.001]
[1731875407761,0.12105999,89709.0,89708.0,0.112472]
[1731875407762,0.01199744,89709.0,89708.0,0.112472]
[1731875408260,0.01199744,89709.0,89708.0,0.111472]
[1731875408483,0.0017118,89709.0,89708.0,0.112472]
[1731875408717,0.0017118,89709.0,89708.0,0.111472]
[1731875409152,0.0017118,89709.0,89708.0,0.112472]
[1731875409384,0.111477,89705.0,89697.0,0.222972]
[1731875409622,0.111486,89697.0,89696.0,0.0008543]
[1731875409872,0.28440874,89697.0,89696.0,0.0008543]
[1731875410072,0.2866396,89697.0,89696.0,0.0008543]
[1731875410301,0.21463439,89697.0,89665.0,0.223052]
[1731875410530,0.111497,89688.0,89687.0,0.16735001]
[1731875410755,0.223004,89685.0,89678.0,0.16735001]
[1731875410974,0.1751536,89684.0,89678.0,0.16735001]
[1731875411190,0.17536319,89683.0,89677.0,0.11151]
[1731875411420,0.1751536,89682.0,89681.0,0.111506]
[1731875411645,0.18940353,89682.0,89678.0,0.111509]
[1731875411875,0.0290091,89681.0,89670.0,0.223037]
[1731875412162,0.08257914,89681.0,89677.0,0.111511]
[1731875412388,0.08034828,89680.0,89678.0,0.001]
[1731875412629,0.08034828,89679.0,89677.0,0.111511]
[1731875412873,0.08034828,89679.0,89663.0,0.223057]
[1731875412874,0.01648079,89679.0,89678.0,0.001]
[1731875413103,0.0700484,89679.0,89678.0,0.001]
[1731875413323,0.0700484,89679.0,89673.0,0.111515]
[1731875413543,0.05356761,89678.0,89673.0,0.111515]
[1731875413790,0.03708372,89677.0,89673.0,0.111515]
[1731875414036,0.03708372,89677.0,89670.0,0.16735001]
[1731875414037,0.111486,89697.0,89688.0,0.111496]
[1731875414258,0.16735001,89689.0,89688.0,0.111496]
[1731875414477,0.16735001,89689.0,89672.0,0.15519003]
[1731875414478,0.12966796,89689.0,89672.0,0.15519003]
[1731875414712,0.12966796,89688.0,89683.0,0.111502]
[1731875414946,0.02283627,89687.0,89684.0,0.111501]
[1731875415165,0.02060541,89686.0,89684.0,0.111501]
[1731875415436,0.02060541,89686.0,89670.0,0.39038901]
[1731875415437,0.00223086,89685.0,89670.0,0.16735001]
[1731875415659,0.111503,89683.0,89670.0,0.16735001]
[1731875415938,0.11151,89678.0,89670.0,0.16735001]
[1731875416152,0.16487133,89677.0,89670.0,0.16735001]
[1731875416398,0.16487133,89677.0,89669.0,0.11152]
[1731875416399,0.27638333,89677.0,89669.0,0.11152]
[1731875416621,0.05357792,89676.0,89670.0,0.001]
[1731875416840,0.111518,89671.0,89670.0,0.001]
[1731875417067,0.255782,89671.0,89670.0,0.001]
[1731875417550,0.144264,89671.0,89670.0,0.001]
[1731875417775,0.144264,89671.0,89664.0,0.0008546]
[1731875417776,0.16487133,89671.0,89665.0,0.111526]
[1731875417996,0.03297059,89670.0,89666.0,0.111524]
[1731875418222,0.13190074,89671.0,89668.0,0.111522]
[1731875418223,0.03520145,89669.0,89668.0,0.111522]
[1731875418515,0.05580878,89669.0,89668.0,0.111522]
[1731875418761,0.05580878,89669.0,89664.0,0.0008546]
[1731875418762,0.02060733,89669.0,89664.0,0.0008546]
[1731875418988,0.00223086,89668.0,89664.0,0.0008546]
[1731875419213,0.02058626,89667.0,89666.0,0.001]
[1731875419428,0.02058626,89667.0,89665.0,0.111525]
[1731875419653,0.00223086,89666.0,89664.0,0.0008546]
[1731875419885,0.02058011,89665.0,89664.0,0.1123806]
[1731875420384,0.02058011,89669.0,89665.0,0.111526]
[1731875420627,0.13187352,89668.0,89664.0,0.1123816]
[1731875420855,0.11129341,89668.0,89664.0,0.1123816]
[1731875421073,0.02058011,89667.0,89664.0,0.1123816]
[1731875421325,0.00223086,89666.0,89665.0,0.111525]
[1731875421539,0.00223086,89667.0,89666.0,0.111524]
[1731875421754,0.00223086,89667.0,89666.0,0.112524]
[1731875421973,0.00223086,89667.0,89666.0,0.111524]
[1731875422846,0.00223086,89667.0,89666.0,0.001]
[1731875423816,0.11129341,89667.0,89666.0,0.001]
[1731875424067,0.22281641,89667.0,89666.0,0.001]
[1731875424749,0.22281641,89667.0,89664.0,0.0008546]
[1731875424750,0.111525,89666.0,89664.0,0.0008546]
[1731875424975,0.11129341,89665.0,89664.0,0.0008546]
[1731875425240,0.22281941,89665.0,89664.0,0.0008546]
[1731875425957,0.24581941,89665.0,89664.0,0.0008546]
[1731875426182,0.40219952,89665.0,89664.0,0.0018546]
[1731875426421,0.39996866,89665.0,89664.0,0.0018546]
[1731875426854,0.43289684,89665.0,89664.0,0.0018546]
[1731875427310,0.46578216,89665.0,89664.0,0.0018546]
[1731875427816,0.46578216,89665.0,89664.0,0.0008546]
[1731875428102,0.40396866,89665.0,89664.0,0.0018546]
[1731875428331,0.14364266,89665.0,89664.0,0.1123816]
[1731875428582,0.028,89665.0,89664.0,0.1133816]
[1731875428798,0.028,89665.0,89664.0,0.0008546]
[1731875428799,0.12306255,89665.0,89664.0,0.0008546]
[1731875429074,0.22058855,89665.0,89664.0,0.0008546]
[1731875429337,0.22058855,89665.0,89664.0,0.1133816]
[1731875429338,0.14581857,89665.0,89664.0,0.1133816]
[1731875429573,0.12306255,89665.0,89664.0,0.0008546]
[1731875430000,0.12306255,89665.0,89664.0,0.1123816]
[1731875430453,0.12306255,89665.0,89664.0,0.0008546]
[1731875430913,0.12529341,89665.0,89664.0,0.0008546]
[1731875431404,0.13629341,89665.0,89664.0,0.0018546]
[1731875431608,0.11129341,89665.0,89664.0,0.0008546]
[1731875431838,0.11906255,89665.0,89664.0,0.0028546]
[1731875434456,0.23058855,89665.0,89664.0,0.0028546]
[1731875434671,0.25581941,89665.0,89664.0,0.0028546]
[1731875434888,0.27635906,89665.0,89664.0,0.0028546]
[1731875435309,0.26635906,89665.0,89664.0,0.0008546]
[1731875435524,0.27635906,89665.0,89664.0,0.0028546]
[1731875436224,0.32925155,89665.0,89664.0,0.002]
[1731875436454,0.32925155,89665.0,89606.0,0.0008543]
[1731875436455,0.144557,89640.0,89606.0,0.0008543]
[1731875436675,0.45299006,89640.0,89606.0,0.0008543]
[1731875436943,0.48365169,89640.0,89606.0,0.0008543]
[1731875437634,0.111594,89610.0,89606.0,0.0008543]
[1731875437864,0.02277051,89609.0,89606.0,0.0008543]
[1731875438084,0.02053965,89609.0,89608.0,0.111597]
[1731875438337,0.02056847,89609.0,89608.0,0.111597]
[1731875438765,0.111585,89618.0,89611.0,0.111593]
[1731875439037,0.111588,89616.0,89609.0,0.111595]
[1731875439279,0.017,89609.0,89608.0,0.111596]
[1731875439719,0.02279933,89613.0,89606.0,0.0008543]
[1731875439928,0.02056847,89612.0,89609.0,0.111595]
[1731875440195,0.00223086,89611.0,89609.0,0.111595]
[1731875440620,0.00223086,89611.0,89610.0,0.111594]
[1731875441083,0.02056847,89617.0,89610.0,0.15519003]
[1731875441300,0.16735001,89623.0,89622.0,0.111579]
[1731875441999,0.02277798,89635.0,89632.0,0.111566]
[1731875442000,0.02054712,89634.0,89632.0,0.111566]
[1731875442238,0.00223086,89636.0,89620.0,0.15519003]
[1731875442464,0.02054081,89648.0,89621.0,0.16958132]
[1731875442689,0.16735001,89643.0,89642.0,0.111554]
[1731875443149,0.00223086,89646.0,89631.0,0.15519003]
[1731875443150,0.00223086,89646.0,89645.0,0.111551]
[1731875443433,0.10906255,89646.0,89645.0,0.111551]
[1731875444195,0.00223086,89651.0,89640.0,0.223113]
[1731875444196,0.00223086,89651.0,89650.0,0.111544]
[1731875444445,0.10906255,89651.0,89650.0,0.111544]
[1731875444929,0.00223086,89662.0,89658.0,0.111534]
[1731875445172,0.10906255,89661.0,89658.0,0.111534]
[1731875445409,0.00223086,89660.0,89659.0,0.111533]
[1731875445651,0.10906255,89660.0,89659.0,0.111533]
[1731875445869,0.0017092,89668.0,89660.0,0.223064]
[1731875446119,0.11077175,89668.0,89667.0,0.111523]
[1731875446344,0.0017092,89668.0,89667.0,0.111523]
[1731875447502,0.0017092,89668.0,89667.0,0.211523]
[1731875447744,0.0017092,89668.0,89667.0,0.21375301]
[1731875447963,0.0017092,89668.0,89667.0,0.26785301]
[1731875448181,0.0017092,89668.0,89667.0,0.38391556]
[1731875448409,0.16735001,89692.0,89691.0,0.111493]
[1731875448643,0.16735001,89692.0,89691.0,0.26668303]
[1731875449109,0.14746441,89704.0,89695.0,0.111488]
[1731875449623,0.0983096,89702.0,89695.0,0.21371752]
[1731875449838,0.0983096,89702.0,89695.0,0.211488]
[1731875450558,0.14746441,89704.0,89695.0,0.36965055]
[1731875450800,0.00171,89710.0,89695.0,0.37465055]
[1731875451984,0.00171,89710.0,89695.0,0.260588]
[1731875452234,0.16735001,89704.0,89695.0,0.111488]
[1731875454217,0.00394266,89709.0,89695.0,0.111488]
[1731875454474,0.0017118,89709.0,89695.0,0.111488]
[1731875454931,0.0017118,89709.0,89695.0,0.32555055]
[1731875455605,0.0017118,89709.0,89695.0,0.33055055]
[1731875456327,0.0017118,89709.0,89708.0,0.36666203]
[1731875457090,0.0017118,89709.0,89708.0,0.48072458]
[1731875457304,0.0017118,89709.0,89708.0,0.56242458]
[1731875458422,0.0017118,89709.0,89708.0,0.211472]
[1731875458645,0.0017118,89709.0,89708.0,0.36666203]
[1731875459394,0.0017118,89709.0,89708.0,0.47572458]
[1731875459643,0.001716,89724.0,89723.0,0.111454]
[1731875460180,0.001716,89724.0,89723.0,0.22774524]
[1731875460424,0.001716,89724.0,89723.0,0.27314524]
[1731875460667,0.001716,89724.0,89723.0,0.211454]
[1731875460887,0.001716,89724.0,89723.0,0.36664403]
[1731875461102,0.001716,89724.0,89713.0,0.15519003]
[1731875461349,0.001716,89724.0,89716.0,0.111461]
[1731875461575,0.001716,89724.0,89714.0,0.22293]
[1731875461576,0.113169,89724.0,89723.0,0.001]
[1731875461796,0.001716,89724.0,89723.0,0.001]
[1731875462018,0.111454,89723.0,89716.0,0.111462]
[1731875462257,0.11146,89718.0,89713.0,0.15619003]
[1731875462540,0.11129341,89722.0,89713.0,0.15619003]
[1731875462784,0.001716,89724.0,89723.0,0.111454]
[1731875462999,0.001716,89724.0,89721.0,0.15519003]
[1731875463210,0.001716,89724.0,89715.0,0.111463]
[1731875463457,0.001716,89724.0,89711.0,0.1]
[1731875463698,0.001716,89724.0,89723.0,0.111454]
[1731875463925,0.002716,89724.0,89723.0,0.111454]
[1731875464142,0.001716,89724.0,89723.0,0.08876819]
[1731875465103,0.001716,89724.0,89723.0,0.002]
[1731875465104,0.22223055,89724.0,89723.0,0.002]
[1731875465356,0.22223055,89724.0,89690.0,0.09942289]
[1731875465357,0.005,89722.0,89691.0,0.111492]
[1731875465586,0.005,89722.0,89690.0,0.09942289]
[1731875465587,0.111471,89709.0,89708.0,0.16735001]
[1731875465806,0.111482,89700.0,89699.0,0.16735001]
[1731875466037,0.22054455,89700.0,89699.0,0.16735001]
[1731875466268,0.22054455,89700.0,89687.0,0.14913434]
[1731875466269,0.10906255,89700.0,89687.0,0.14913434]